bitfinex/quotes_BTCUSD_20251012
["timestamp","ask_amount","ask_price","bid_price","bid_amount"]
[1760291620868,1.46419461,114020.0,114010.0,0.21804143]
[1760291621084,1.28878679,114020.0,114010.0,0.21804143]
[1760291621607,0.46172679,114020.0,114010.0,0.21804143]
[1760291621817,1.28878679,114020.0,114010.0,0.21804143]
[1760291622232,1.46419461,114020.0,114010.0,0.21804143]
[1760291622658,0.46172679,114020.0,114010.0,0.21804143]
[1760291622886,1.28878679,114020.0,114010.0,0.21804143]
[1760291623515,1.46419461,114020.0,114010.0,0.21804143]
[1760291624354,1.28878679,114020.0,114010.0,0.21804143]
[1760291625828,1.46419461,114020.0,114010.0,0.21804143]
[1760291627239,1.62419461,114020.0,114010.0,0.21804143]
[1760291627446,0.46172679,114020.0,114010.0,0.21804143]
[1760291627767,1.28878679,114020.0,114010.0,0.21804143]
[1760291628934,1.46419461,114020.0,114010.0,0.21804143]
[1760291629832,0.46172679,114020.0,114010.0,0.21804143]
[1760291630070,1.28878679,114020.0,114010.0,0.21804143]
[1760291630450,0.41585679,114020.0,114010.0,0.31589912]
[1760291630657,0.82706,114030.0,114020.0,0.17540782]
[1760291630842,1.20064,114030.0,114020.0,0.28075782]
[1760291631770,1.16706,114030.0,114020.0,0.28075782]
[1760291631971,0.82706,114040.0,114030.0,0.17539244]
[1760291632088,1.16706,114040.0,114030.0,0.40888779]
[1760291632542,0.37708,114040.0,114030.0,0.17539244]
[1760291632741,0.82706,114040.0,114030.0,0.28074244]
[1760291633107,1.16706,114040.0,114030.0,0.28074244]
[1760291633668,1.20562,114040.0,114030.0,0.28074244]
[1760291633864,1.20524,114040.0,114030.0,0.28074244]
[1760291634003,1.16706,114040.0,114030.0,0.36927244]
[1760291634420,1.20414,114040.0,114030.0,0.17539244]
[1760291635488,1.20414,114040.0,114030.0,0.23390244]
[1760291635689,1.20376,114040.0,114030.0,0.28074244]
[1760291635941,1.20376,114040.0,114030.0,0.34077151]
[1760291635942,1.16706,114040.0,114030.0,0.34077151]
[1760291636086,1.16706,114040.0,114030.0,0.42930151]
[1760291639049,0.34,114040.0,114030.0,0.42930151]
[1760291639258,1.38247371,114070.0,114060.0,0.1753463]
[1760291639464,0.799657,114060.0,114050.0,0.22220168]
[1760291639658,1.173227,114060.0,114050.0,0.22220168]
[1760291639816,1.174477,114060.0,114050.0,0.28414168]
[1760291640858,1.173227,114060.0,114050.0,0.28414168]
[1760291641487,1.174477,114060.0,114050.0,0.28414168]
[1760291641913,1.174477,114060.0,114050.0,0.32626168]
[1760291642320,1.173227,114060.0,114050.0,0.39083944]
[1760291642549,1.139657,114060.0,114050.0,0.48248944]
[1760291642755,0.03179,114080.0,114070.0,0.17533093]
[1760291642966,0.85948,114080.0,114070.0,0.17533093]
[1760291643164,1.37818192,114080.0,114070.0,0.17533093]
[1760291643372,1.21818192,114080.0,114070.0,0.17533093]
[1760291643781,0.39112192,114080.0,114070.0,0.17533093]
[1760291644079,1.37479556,114080.0,114070.0,0.17533093]
[1760291644292,0.1753463,114060.0,114050.0,0.04212]
[1760291644496,1.0374963,114060.0,114050.0,0.04212]
[1760291644703,0.66233012,114060.0,114050.0,0.04212]
[1760291644912,1.58003252,114060.0,114050.0,0.0415]
[1760291645117,0.51540782,114020.0,114010.0,0.07162362]
[1760291645326,0.51540782,114020.0,114010.0,0.07212185]
[1760291645327,1.39863545,114020.0,114010.0,0.07212185]
[1760291645503,1.46273545,114020.0,114010.0,0.00049823]
[1760291646098,1.28048763,114020.0,114010.0,0.17592143]
[1760291646348,0.43473,114020.0,114010.0,0.17592143]
[1760291646501,1.26179,114020.0,114010.0,0.17592143]
[1760291646732,1.43719782,114020.0,114010.0,0.17592143]
[1760291646939,1.16706,114020.0,114010.0,0.28177727]
[1760291647098,1.16706,114020.0,114010.0,0.32745727]
[1760291647303,1.16706,114020.0,114010.0,0.41910727]
[1760291647703,1.16706,114020.0,114010.0,0.32745727]
[1760291647918,1.16706,114020.0,114010.0,0.28354143]
[1760291648935,0.03773,114040.0,114030.0,0.17539244]
[1760291649151,1.3649,114040.0,114030.0,0.17539244]
[1760291649337,0.8649,114040.0,114030.0,0.17539244]
[1760291649583,0.61604706,114040.0,114030.0,0.17539244]
[1760291649790,0.61604706,114040.0,114020.0,0.22107416]
[1760291649791,1.16706,114030.0,114020.0,0.22107416]
[1760291650126,1.17847,114030.0,114020.0,0.28301416]
[1760291652196,1.33847,114030.0,114020.0,0.28301416]
[1760291652392,1.17847,114030.0,114020.0,0.28301416]
[1760291653415,1.17921,114030.0,114020.0,0.22107416]
[1760291653615,1.17921,114030.0,114020.0,0.28301416]
[1760291653871,1.17847,114030.0,114020.0,0.28301416]
[1760291654877,1.17921,114030.0,114020.0,0.28301416]
[1760291656796,1.17847,114030.0,114020.0,0.28301416]
[1760291657163,1.32706,114030.0,114020.0,0.43516784]
[1760291657360,1.16706,114030.0,114020.0,0.43516784]
[1760291657567,1.16706,114030.0,114020.0,0.47728784]
[1760291657821,0.03773,114040.0,114030.0,0.17539244]
[1760291657822,1.16706,114040.0,114030.0,0.17539244]
[1760291657999,0.82706,114040.0,114030.0,0.37466244]
[1760291658206,0.82706,114050.0,114040.0,0.17537706]
[1760291658401,1.37756475,114060.0,114050.0,0.17536168]
[1760291658579,1.14482678,114060.0,114050.0,0.17536168]
[1760291658780,1.14482678,114060.0,114030.0,0.22984206]
[1760291658988,0.82706,114030.0,114020.0,0.21752336]
[1760291659197,1.02794244,114030.0,114020.0,0.21752336]
[1760291659546,1.35500244,114030.0,114020.0,0.21802159]
[1760291659744,1.35500244,114030.0,114020.0,0.27996159]
[1760291660016,1.17961,114030.0,114020.0,0.27996159]
[1760291660417,1.16706,114030.0,114020.0,0.47744019]
[1760291660838,1.16706,114030.0,114020.0,0.41729159]
[1760291662249,1.32706,114030.0,114020.0,0.41729159]
[1760291662451,1.60168244,114030.0,114020.0,0.21802159]
[1760291662859,1.51647244,114030.0,114020.0,0.21802159]
[1760291663065,1.60168244,114030.0,114020.0,0.04261823]
[1760291663271,1.62037212,114030.0,114020.0,0.04261823]
[1760291663628,1.64675932,114030.0,114020.0,0.04261823]
[1760291664712,0.81969932,114030.0,114020.0,0.04261823]
[1760291664910,1.64675932,114030.0,114020.0,0.04261823]
[1760291667515,1.60168244,114030.0,114020.0,0.04261823]
[1760291667914,0.77462244,114030.0,114020.0,0.04261823]
[1760291668118,1.60168244,114030.0,114020.0,0.04261823]
[1760291668775,1.60168244,114030.0,114020.0,0.02843894]
[1760291668776,1.63183434,114030.0,114020.0,0.02843894]
[1760291669009,1.67841929,114030.0,114020.0,0.02843894]
[1760291669196,1.7048083,114030.0,114020.0,0.02843894]
[1760291669729,1.6768945,114030.0,114020.0,0.02843894]
[1760291669917,0.8498345,114030.0,114020.0,0.02843894]
[1760291670132,1.5168945,114030.0,114020.0,0.02843894]
[1760291670291,0.6898345,114030.0,114020.0,0.02843894]
[1760291670455,1.5168945,114030.0,114020.0,0.02843894]
[1760291671874,0.6898345,114030.0,114020.0,0.02843894]
[1760291672069,1.5168945,114030.0,114020.0,0.02843894]
[1760291672423,1.6768945,114030.0,114020.0,0.02843894]
[1760291672618,0.6898345,114030.0,114020.0,0.02843894]
[1760291672847,1.5168945,114030.0,114020.0,0.02843894]
[1760291673458,0.6898345,114030.0,114020.0,0.02843894]
[1760291673660,1.5168945,114030.0,114020.0,0.02843894]
[1760291674063,0.6898345,114030.0,114020.0,0.02843894]
[1760291674272,1.5168945,114030.0,114020.0,0.02843894]
[1760291676220,0.6898345,114030.0,114020.0,0.02843894]
[1760291676364,1.5168945,114030.0,114020.0,0.02843894]
[1760291676793,0.6898345,114030.0,114020.0,0.02843894]
[1760291677233,1.5168945,114030.0,114020.0,0.02843894]
[1760291677406,1.6768945,114030.0,114020.0,0.02843894]
[1760291677615,1.5168945,114030.0,114020.0,0.02843894]
[1760291678142,0.6898345,114030.0,114020.0,0.02843894]
[1760291678345,1.5168945,114030.0,114020.0,0.02843894]
[1760291678547,0.6898345,114030.0,114020.0,0.02843894]
[1760291678925,1.18108,114030.0,114020.0,0.26451676]
[1760291679270,1.35647244,114030.0,114020.0,0.30576676]
[1760291680267,1.18108,114030.0,114020.0,0.30576676]
[1760291680435,0.82706,114030.0,114020.0,0.39066676]
[1760291680646,1.16706,114030.0,114020.0,0.39066676]
[1760291685995,1.16772,114030.0,114020.0,0.30576676]
[1760291686231,1.16706,114030.0,114020.0,0.38842676]
[1760291688529,0.82706,114030.0,114020.0,0.38842676]
[1760291688868,0.18697224,114050.0,114040.0,0.17537706]
[1760291689040,1.35426224,114050.0,114040.0,0.17537706]
[1760291689237,1.35426224,114050.0,114040.0,0.35897706]
[1760291689238,0.83867,114050.0,114040.0,0.35897706]
[1760291689437,0.82706,114050.0,114040.0,0.35897706]
[1760291689644,0.82706,114060.0,114050.0,0.17536168]
[1760291689845,0.24817595,114080.0,114070.0,0.17533093]
[1760291690063,1.40064,114080.0,114070.0,0.27627093]
[1760291690494,1.41595556,114080.0,114070.0,0.27627093]
[1760291690707,1.24064,114080.0,114070.0,0.27627093]
[1760291691541,0.41358,114080.0,114070.0,0.27627093]
[1760291691774,1.24064,114080.0,114070.0,0.27627093]
[1760291692729,0.41358,114080.0,114070.0,0.27627093]
[1760291693054,1.41595556,114080.0,114070.0,0.27627093]
[1760291693458,1.41595556,114080.0,114070.0,0.17533093]
[1760291693788,1.41595556,114080.0,114070.0,0.27627093]
[1760291694685,1.21706,114080.0,114070.0,0.35893093]
[1760291695231,1.21706,114080.0,114070.0,0.41046826]
[1760291695429,0.87706,114080.0,114070.0,0.41046826]
[1760291695882,1.21706,114080.0,114070.0,0.41046826]
[1760291696288,0.05,114080.0,114070.0,0.41046826]
[1760291698914,0.34,114090.0,114080.0,0.17531556]
[1760291699123,0.34014935,114090.0,114080.0,0.32983394]
[1760291699353,0.34014935,114090.0,114080.0,0.41249394]
[1760291701322,0.00014935,114090.0,114080.0,0.41249394]
[1760291706739,1.16720935,114090.0,114080.0,0.35891556]
[1760291707426,0.00014935,114090.0,114080.0,0.35891556]
[1760291711859,2.80243677,114100.0,114090.0,0.23045209]
[1760291712082,2.80243677,114100.0,114090.0,0.56208208]
[1760291712231,2.50494305,114100.0,114090.0,0.65080142]
[1760291712444,2.50494305,114100.0,114090.0,0.55080143]
[1760291712633,2.50494305,114100.0,114090.0,0.65080142]
[1760291713938,2.50494305,114100.0,114090.0,0.62064952]
[1760291714143,2.50494305,114100.0,114090.0,0.52064953]
[1760291716016,2.50494305,114100.0,114090.0,0.23163]
[1760291716017,3.33200305,114100.0,114090.0,0.23163]
[1760291716325,3.33200305,114100.0,114090.0,0.4069302]
[1760291716471,3.67200305,114100.0,114090.0,0.4069302]
[1760291716676,3.87577788,114100.0,114090.0,0.04212]
[1760291716877,3.87577788,114100.0,114090.0,0.2770302]
[1760291717157,3.04802788,114100.0,114090.0,0.3203002]
[1760291717342,3.67200305,114100.0,114090.0,0.4069302]
[1760291717740,3.84728788,114100.0,114090.0,0.4069302]
[1760291718501,3.68011561,114100.0,114090.0,0.4069302]
[1760291719142,2.87176512,114100.0,114090.0,0.4069302]
[1760291719340,3.69882512,114100.0,114090.0,0.4069302]
[1760291719567,3.87411274,114100.0,114090.0,0.4069302]
[1760291719769,3.87411274,114100.0,114090.0,0.3203002]
[1760291719979,3.87411274,114100.0,114090.0,0.4069302]
[1760291720559,3.69882791,114100.0,114090.0,0.4069302]
[1760291720760,3.90260274,114100.0,114090.0,0.3203002]
[1760291721166,3.07554274,114100.0,114090.0,0.3203002]
[1760291721367,3.90164274,114100.0,114090.0,0.3203002]
[1760291721580,4.00127464,114100.0,114090.0,0.04212]
[1760291721795,3.17421464,114100.0,114090.0,0.04212]
[1760291722000,3.9945237,114100.0,114090.0,0.04212]
[1760291722446,4.02573565,114100.0,114090.0,0.04212]
[1760291722669,4.0023298,114100.0,114090.0,0.04212]
[1760291723752,3.1752698,114100.0,114090.0,0.04212]
[1760291723962,4.0023298,114100.0,114090.0,0.04212]
[1760291724605,3.1752698,114100.0,114090.0,0.04212]
[1760291724825,4.0023298,114100.0,114090.0,0.04212]
[1760291726395,3.1752698,114100.0,114090.0,0.04212]
[1760291726618,4.0023298,114100.0,114090.0,0.04212]
[1760291726891,4.07915459,114100.0,114090.0,0.04212]
[1760291727176,4.07586133,114100.0,114090.0,0.04212]
[1760291727445,4.02918844,114100.0,114090.0,0.04212]
[1760291727955,4.05638502,114100.0,114090.0,0.04212]
[1760291728179,1.34239093,114070.0,114060.0,0.07162362]
[1760291728388,0.58154579,114070.0,114060.0,0.07177297]
[1760291728594,0.58354579,114070.0,114060.0,0.07177297]
[1760291728828,1.47819579,114070.0,114060.0,0.00014935]
[1760291729449,0.65113579,114070.0,114060.0,0.00014935]
[1760291730095,0.8457723,114070.0,114060.0,0.36805565]
[1760291730299,1.16706,114070.0,114060.0,0.43109234]
[1760291730713,1.18213904,114070.0,114060.0,0.43109234]
[1760291731955,1.42527997,114070.0,114060.0,0.00014935]
[1760291732442,1.44396638,114070.0,114060.0,0.00014935]
[1760291732860,1.45207642,114070.0,114060.0,0.00014935]
[1760291733028,1.51014212,114070.0,114060.0,0.00014935]
[1760291733397,1.53351363,114070.0,114060.0,0.00014935]
[1760291734256,1.50203208,114070.0,114060.0,0.00014935]
[1760291734456,0.68307693,114070.0,114060.0,0.00014935]
[1760291734668,1.50203208,114070.0,114060.0,0.00014935]
[1760291734845,1.51013693,114070.0,114060.0,0.00014935]
[1760291735042,1.50203208,114070.0,114060.0,0.00014935]
[1760291735243,1.51013695,114070.0,114060.0,0.00014935]
[1760291735447,0.68307695,114070.0,114060.0,0.00014935]
[1760291735652,1.51013695,114070.0,114060.0,0.00014935]
[1760291735845,1.47411828,114070.0,114060.0,0.00014935]
[1760291736183,1.26863545,114070.0,114060.0,0.17549565]
[1760291736387,0.84302904,114070.0,114060.0,0.31791328]
[1760291736592,0.84302904,114070.0,114060.0,0.27861565]
[1760291736817,0.84368904,114070.0,114060.0,0.27861565]
[1760291736968,1.18368904,114070.0,114060.0,0.27861565]
[1760291738388,0.35662904,114070.0,114060.0,0.27861565]
[1760291738593,1.18368904,114070.0,114060.0,0.27861565]
[1760291739024,0.35662904,114070.0,114060.0,0.27861565]
[1760291739233,1.18368904,114070.0,114060.0,0.27861565]
[1760291742043,0.35507904,114070.0,114060.0,0.4265152]
[1760291742455,0.35507904,114070.0,114060.0,0.36805565]
[1760291742699,1.18213904,114070.0,114060.0,0.36805565]
[1760291742889,0.35507904,114070.0,114060.0,0.36805565]
[1760291743297,1.42527997,114070.0,114060.0,0.17549565]
[1760291743700,0.59821997,114070.0,114060.0,0.17549565]
[1760291743818,1.35814997,114070.0,114060.0,0.17549565]
[1760291744962,1.42527997,114070.0,114060.0,0.00014935]
[1760291745173,1.48334567,114070.0,114060.0,0.00014935]
[1760291745389,1.50206154,114070.0,114060.0,0.00014935]
[1760291746107,0.67500154,114070.0,114060.0,0.00014935]
[1760291746307,1.50206154,114070.0,114060.0,0.00014935]
[1760291747152,1.47414774,114070.0,114060.0,0.00014935]
[1760291747351,0.64708774,114070.0,114060.0,0.00014935]
[1760291747579,1.47414774,114070.0,114060.0,0.00014935]
[1760291750796,0.64708774,114070.0,114060.0,0.00014935]
[1760291751034,1.47414774,114070.0,114060.0,0.00014935]
[1760291751620,0.64708774,114070.0,114060.0,0.00014935]
[1760291751824,1.47414774,114070.0,114060.0,0.00014935]
[1760291752232,0.64708774,114070.0,114060.0,0.00014935]
[1760291752404,1.47414774,114070.0,114060.0,0.00014935]
[1760291753037,0.64708774,114070.0,114060.0,0.00014935]
[1760291753237,1.47414774,114070.0,114060.0,0.00014935]
[1760291754207,1.44399584,114070.0,114060.0,0.00014935]
[1760291755555,1.47414774,114070.0,114060.0,0.00014935]
[1760291756156,0.64708774,114070.0,114060.0,0.00014935]
[1760291756370,1.47414774,114070.0,114060.0,0.00014935]
[1760291757394,1.44399584,114070.0,114060.0,0.00014935]
[1760291758005,0.61693584,114070.0,114060.0,0.00014935]
[1760291758216,1.44399584,114070.0,114060.0,0.00014935]
[1760291758570,0.86153491,114070.0,114060.0,0.23048565]
[1760291758772,0.86085491,114070.0,114060.0,0.36254565]
[1760291758988,1.37752584,114070.0,114060.0,0.27508565]
[1760291759212,1.35880997,114070.0,114060.0,0.22009565]
[1760291759543,1.51880997,114070.0,114060.0,0.22009565]
[1760291760421,0.17507904,114070.0,114060.0,0.35583565]
[1760291760629,0.17507904,114070.0,114060.0,0.41762738]
[1760291760879,0.01507904,114070.0,114060.0,0.41762738]
[1760291772872,0.01507904,114070.0,114060.0,0.41662738]
[1760291774312,2.50494305,114100.0,114090.0,0.1753002]
[1760291774514,2.50494305,114100.0,114090.0,0.3553402]
[1760291774515,3.33200305,114100.0,114090.0,0.3553402]
[1760291774688,3.67200305,114100.0,114090.0,0.41283578]
[1760291775948,3.67200305,114100.0,114090.0,0.3553402]
[1760291776334,3.69954305,114100.0,114090.0,0.2732502]
[1760291777963,3.69954305,114100.0,114090.0,0.3553402]
[1760291778345,3.69954305,114100.0,114090.0,0.2732502]
[1760291779574,2.87248305,114100.0,114090.0,0.2732502]
[1760291779771,3.69954305,114100.0,114090.0,0.2732502]
[1760291779994,3.67369795,114100.0,114090.0,0.3553402]
[1760291780764,3.70166795,114100.0,114090.0,0.2732502]
[1760291781768,3.67369795,114100.0,114090.0,0.2732502]
[1760291782416,3.67369795,114100.0,114090.0,0.3974602]
[1760291783426,2.84663795,114100.0,114090.0,0.45916778]
[1760291784669,2.84663795,114100.0,114090.0,0.3974602]
[1760291786799,2.50663795,114100.0,114090.0,0.3974602]
[1760291791790,2.08188405,114100.0,114090.0,0.3974602]
[1760291792816,2.42188405,114100.0,114090.0,0.3974602]
[1760291793036,3.24894405,114100.0,114090.0,0.3974602]
[1760291794210,3.24894405,114100.0,114090.0,0.45916778]
[1760291794663,2.42188405,114100.0,114090.0,0.45916778]
[1760291798336,2.42188405,114100.0,114090.0,0.3974602]
[1760291799511,3.53199888,114100.0,114090.0,0.04212]
[1760291800770,2.70493888,114100.0,114090.0,0.04212]
[1760291800969,3.53199888,114100.0,114090.0,0.04212]
[1760291802030,3.66991268,114100.0,114090.0,0.04212]
[1760291802402,2.84285268,114100.0,114090.0,0.04212]
[1760291802641,3.66991268,114100.0,114090.0,0.04212]
[1760291803001,3.64199888,114100.0,114090.0,0.2174202]
[1760291803786,3.64199888,114100.0,114090.0,0.04212]
[1760291804629,2.81493888,114100.0,114090.0,0.04212]
[1760291804836,3.64199888,114100.0,114090.0,0.04212]
[1760291805253,2.81493888,114100.0,114090.0,0.04212]
[1760291805637,3.64199888,114100.0,114090.0,0.04212]
[1760291806290,2.81493888,114100.0,114090.0,0.04212]
[1760291806496,3.56229888,114100.0,114090.0,0.2712402]
[1760291806704,3.64199888,114100.0,114090.0,0.2174202]
[1760291807317,3.64199888,114100.0,114090.0,0.04212]
[1760291807527,2.81493888,114100.0,114090.0,0.04212]
[1760291807733,3.64199888,114100.0,114090.0,0.04212]
[1760291807952,3.64199888,114100.0,114090.0,0.2174202]
[1760291808165,3.38701405,114100.0,114090.0,0.2712402]
[1760291808375,3.56229888,114100.0,114090.0,0.2174202]
[1760291808715,3.64199888,114100.0,114090.0,0.2174202]
[1760291808913,3.64199888,114100.0,114090.0,0.04212]
[1760291809321,2.81493888,114100.0,114090.0,0.2174202]
[1760291809544,3.64199888,114100.0,114090.0,0.04212]
[1760291810828,2.81493888,114100.0,114090.0,0.04212]
[1760291811033,3.64199888,114100.0,114090.0,0.04212]
[1760291812256,2.81493888,114100.0,114090.0,0.04212]
[1760291812930,3.64199888,114100.0,114090.0,0.04212]
[1760291814612,2.81493888,114100.0,114090.0,0.04212]
[1760291814724,3.64199888,114100.0,114090.0,0.04212]
[1760291815391,2.81493888,114100.0,114090.0,0.04212]
[1760291815593,3.64199888,114100.0,114090.0,0.04212]
[1760291815793,2.81493888,114100.0,114090.0,0.04212]
[1760291815994,3.64199888,114100.0,114090.0,0.04212]
[1760291816392,2.81493888,114100.0,114090.0,0.04212]
[1760291816625,3.64199888,114100.0,114090.0,0.04212]
[1760291816834,3.64199888,114100.0,114090.0,0.2174202]
[1760291817213,3.56229888,114100.0,114090.0,0.2174202]
[1760291818246,3.56229888,114100.0,114090.0,0.04212]
[1760291819601,3.56229888,114100.0,114090.0,0.2174202]
[1760291820225,3.56229888,114100.0,114090.0,0.2705502]
[1760291821760,2.73523888,114100.0,114090.0,0.2705502]
[1760291821965,3.56229888,114100.0,114090.0,0.2705502]
[1760291822168,3.38621405,114100.0,114090.0,0.37068153]
[1760291822378,3.24894405,114100.0,114090.0,0.45485153]
[1760291822596,3.27530955,114100.0,114090.0,0.45485153]
[1760291823374,3.27530955,114100.0,114090.0,0.3973002]
[1760291826868,0.51536168,114050.0,114040.0,0.0847]
[1760291827102,1.37433168,114050.0,114040.0,0.04212]
[1760291827308,1.51243738,114050.0,114040.0,0.04212]
[1760291827710,1.53882085,114050.0,114040.0,0.04212]
[1760291829538,0.71176085,114050.0,114040.0,0.04212]
[1760291829755,0.68384705,114050.0,114040.0,0.04212]
[1760291829929,1.51090705,114050.0,114040.0,0.04212]
[1760291831785,0.68384705,114050.0,114040.0,0.04212]
[1760291832078,1.51090705,114050.0,114040.0,0.04212]
[1760291833229,0.68384705,114050.0,114040.0,0.04212]
[1760291833580,1.51090705,114050.0,114040.0,0.04212]
[1760291833783,1.53882085,114050.0,114040.0,0.04212]
[1760291835062,0.71176085,114050.0,114040.0,0.04212]
[1760291835426,1.53882085,114050.0,114040.0,0.04212]
[1760291837126,0.71176085,114050.0,114040.0,0.04212]
[1760291837698,1.53882085,114050.0,114040.0,0.04212]
[1760291838729,0.5154232,114010.0,114000.0,0.11420362]
[1760291838885,1.4398532,114010.0,114000.0,0.20995185]
[1760291839088,0.6127932,114010.0,114000.0,0.13832823]
[1760291839293,1.4398532,114010.0,114000.0,0.13832823]
[1760291839541,1.43490192,114010.0,114000.0,0.31376682]
[1760291839752,1.43548192,114010.0,114000.0,0.31376682]
[1760291840103,1.26005872,114010.0,114000.0,0.31376682]
[1760291840313,1.25947872,114010.0,114000.0,0.4595336]
[1760291840713,1.43490192,114010.0,114000.0,0.39793682]
[1760291841123,1.43576192,114010.0,114000.0,0.31376682]
[1760291842269,1.26033872,114010.0,114000.0,0.31376682]
[1760291842668,1.43576192,114010.0,114000.0,0.31376682]
[1760291842870,1.43576192,114010.0,114000.0,0.39793682]
[1760291843162,1.43490192,114010.0,114000.0,0.39793682]
[1760291843960,1.21991872,114010.0,114000.0,0.39793682]
[1760291844251,1.39534192,114010.0,114000.0,0.39793682]
[1760291844407,1.39572192,114010.0,114000.0,0.13832823]
[1760291844612,1.51381192,114010.0,114000.0,0.04261823]
[1760291845707,0.68675192,114010.0,114000.0,0.04261823]
[1760291846079,1.51381192,114010.0,114000.0,0.04261823]
[1760291846565,0.68675192,114010.0,114000.0,0.04261823]
[1760291846708,1.54172572,114010.0,114000.0,0.04261823]
[1760291847546,0.71466572,114010.0,114000.0,0.04261823]
[1760291847747,1.54172572,114010.0,114000.0,0.04261823]
[1760291847950,1.28590252,114010.0,114000.0,0.04261823]
[1760291848150,0.05285872,114010.0,114000.0,0.41974403]
[1760291848546,0.39285872,114010.0,114000.0,0.41974403]
[1760291852529,0.39285872,114010.0,114000.0,0.39793682]
[1760291852530,1.21991872,114010.0,114000.0,0.39793682]
[1760291852734,1.22026872,114010.0,114000.0,0.31376682]
[1760291853387,1.39569192,114010.0,114000.0,0.31376682]
[1760291854169,1.22026872,114010.0,114000.0,0.31376682]
[1760291855165,1.23893864,114010.0,114000.0,0.31376682]
[1760291855370,1.41436184,114010.0,114000.0,0.31376682]
[1760291856861,1.23893864,114010.0,114000.0,0.31376682]
[1760291857811,1.23858864,114010.0,114000.0,0.43135406]
[1760291858460,0.04505719,114010.0,114000.0,0.43135406]
[1760291858639,0.01870105,114030.0,114020.0,0.17540782]
[1760291858786,0.3850819,114030.0,114020.0,0.35198782]
[1760291858983,0.3850819,114030.0,114020.0,0.40891054]
[1760291860202,0.36638085,114030.0,114020.0,0.40891054]
[1760291861929,1.19344085,114030.0,114020.0,0.35198782]
[1760291862109,1.2121419,114030.0,114020.0,0.35198782]
[1760291863230,1.19344085,114030.0,114020.0,0.35198782]
[1760291868003,1.36883329,114030.0,114020.0,0.17658]
[1760291868338,1.37035329,114030.0,114020.0,0.27063782]
[1760291868770,1.36883329,114030.0,114020.0,0.35456782]
[1760291870358,1.19344085,114030.0,114020.0,0.35456782]
[1760291870653,0.02638085,114030.0,114020.0,0.41174854]
[1760291870904,0.02306732,114040.0,114030.0,0.17539244]
[1760291871112,0.04944547,114040.0,114030.0,0.17539244]
[1760291871346,0.02637815,114040.0,114030.0,0.35579244]
[1760291871747,1.52881521,114040.0,114030.0,0.35579244]
[1760291871966,0.85343815,114040.0,114030.0,0.35579244]
[1760291873941,0.87596632,114040.0,114030.0,0.35579244]
[1760291874142,1.05134338,114040.0,114030.0,0.35579244]
[1760291874918,0.87596632,114040.0,114030.0,0.35579244]
[1760291875470,1.05134338,114040.0,114030.0,0.35579244]
[1760291876870,1.05212338,114040.0,114030.0,0.27186244]
[1760291877051,1.05134338,114040.0,114030.0,0.35579244]
[1760291878233,1.05240338,114040.0,114030.0,0.04231]
[1760291878487,1.16706,114030.0,114020.0,0.21723782]
[1760291878626,1.36930244,114030.0,114020.0,0.13811]
[1760291878828,1.45165244,114030.0,114020.0,0.04212]
[1760291879139,1.47803686,114030.0,114020.0,0.04212]
[1760291881378,1.53803686,114030.0,114020.0,0.04212]
[1760291881577,0.71097686,114030.0,114020.0,0.04212]
[1760291881797,1.55672732,114030.0,114020.0,0.04212]
[1760291882024,0.72966732,114030.0,114020.0,0.04212]
[1760291882232,1.55672732,114030.0,114020.0,0.04212]
[1760291882768,0.72966732,114030.0,114020.0,0.04212]
[1760291883113,1.55672732,114030.0,114020.0,0.04212]
[1760291884059,1.47437732,114030.0,114020.0,0.09731]
[1760291884300,1.45568686,114030.0,114020.0,0.09731]
[1760291884517,1.45568686,114030.0,114020.0,0.04212]
[1760291885056,0.45135442,114030.0,114020.0,0.34496204]
[1760291885259,0.06,114030.0,114020.0,0.42251204]
[1760291886012,0.4,114030.0,114020.0,0.38911782]
[1760291886440,1.22706,114030.0,114020.0,0.38911782]
[1760291887041,1.2302,114030.0,114020.0,0.38911782]
[1760291887557,1.2302,114030.0,114020.0,0.04212]
[1760291887558,0.65512244,114030.0,114020.0,0.04212]
[1760291887779,1.51233434,114030.0,114020.0,0.04212]
[1760291888107,1.55856505,114030.0,114020.0,1e-08]
[1760291888297,1.58029596,114030.0,114020.0,1e-08]
[1760291888498,0.78011798,114030.0,114020.0,1e-08]
[1760291888796,1.63054443,114030.0,114020.0,1e-08]
[1760291889525,1.53103239,114030.0,114020.0,1e-08]
[1760291890043,0.70397239,114030.0,114020.0,1e-08]
[1760291890447,1.51233434,114030.0,114020.0,1e-08]
[1760291890869,1.51233434,114030.0,114020.0,0.05519001]
[1760291890870,1.06559244,114030.0,114020.0,0.05519001]
[1760291891246,1.06559244,114030.0,114020.0,1e-08]
[1760291891486,1.48218244,114030.0,114020.0,1e-08]
[1760291891888,0.65512244,114030.0,114020.0,1e-08]
[1760291892088,1.48218244,114030.0,114020.0,1e-08]
[1760291893604,0.65512244,114030.0,114020.0,1e-08]
[1760291893866,1.48218244,114030.0,114020.0,1e-08]
[1760291894439,1.40559244,114030.0,114020.0,1e-08]
[1760291894732,1.48218244,114030.0,114020.0,1e-08]
[1760291895887,0.65512244,114030.0,114020.0,1e-08]
[1760291896089,1.48218244,114030.0,114020.0,1e-08]
[1760291896525,0.65512244,114030.0,114020.0,1e-08]
[1760291896728,1.48218244,114030.0,114020.0,1e-08]
[1760291896928,1.50856837,114030.0,114020.0,1e-08]
[1760291897499,0.68150837,114030.0,114020.0,1e-08]
[1760291897715,1.50856837,114030.0,114020.0,1e-08]
[1760291899249,0.68150837,114030.0,114020.0,1e-08]
[1760291899450,1.50856837,114030.0,114020.0,1e-08]
[1760291899655,0.68150837,114030.0,114020.0,1e-08]
[1760291899860,1.50856837,114030.0,114020.0,1e-08]
[1760291900424,0.68150837,114030.0,114020.0,1e-08]
[1760291900911,1.50856837,114030.0,114020.0,1e-08]
[1760291901106,0.68150837,114030.0,114020.0,1e-08]
[1760291901306,1.50856837,114030.0,114020.0,1e-08]
[1760291901856,0.68150837,114030.0,114020.0,1e-08]
[1760291902487,1.50856837,114030.0,114020.0,1e-08]
[1760291902689,0.68150837,114030.0,114020.0,1e-08]
[1760291902903,1.50856837,114030.0,114020.0,1e-08]
[1760291903481,0.68150837,114030.0,114020.0,1e-08]
[1760291903731,1.50856837,114030.0,114020.0,1e-08]
[1760291903964,0.68150837,114030.0,114020.0,1e-08]
[1760291904176,1.50856837,114030.0,114020.0,1e-08]
[1760291904319,0.68150837,114030.0,114020.0,1e-08]
[1760291904516,1.50856837,114030.0,114020.0,1e-08]
[1760291904890,0.68150837,114030.0,114020.0,1e-08]
[1760291905021,1.50856837,114030.0,114020.0,1e-08]
[1760291906072,1.53872027,114030.0,114020.0,1e-08]
[1760291906267,1.61253464,114030.0,114020.0,1e-08]
[1760291906627,1.58565262,114030.0,114020.0,1e-08]
[1760291906831,1.58465262,114030.0,114020.0,1e-08]